bitfinex/quotes_SOLUSD_20241215
["timestamp","ask_amount","ask_price","bid_price","bid_amount"]
[1734302178892,20.0,219.02,218.92,6.4237]
[1734302179889,20.0,218.99,218.92,6.4237]
[1734302180054,0.12549,218.98,218.92,6.4237]
[1734302180374,20.0,218.99,218.92,6.4237]
[1734302182363,7.19435279,219.04,218.92,6.4237]
[1734302183684,20.0,219.01,218.92,6.4237]
[1734302186588,20.0,219.03,218.92,6.4237]
[1734302190665,0.12549,219.02,218.92,6.4237]
[1734302190873,20.12549,219.02,218.92,6.4237]
[1734302192388,20.0,218.98,218.92,6.4237]
[1734302196983,0.12549,218.97,218.92,6.4237]
[1734302197663,20.0,218.93,218.92,6.4237]
[1734302197863,20.0,218.93,218.87,6.3858]
[1734302200986,26.8515,218.93,218.87,6.3858]
[1734302203295,0.12549,218.92,218.87,6.3858]
[1734302203591,20.12549,218.92,218.87,6.3858]
[1734302203809,20.0,218.9,218.87,6.3858]
[1734302205192,20.0,218.9,218.82,6.4385]
[1734302211305,20.0,218.87,218.82,6.4385]
[1734302214504,26.8536,218.87,218.82,6.4385]
[1734302214804,26.8536,218.87,218.77,6.6048]
[1734302214999,0.12549,218.86,218.77,6.6048]
[1734302215612,6.854,218.85,218.77,6.6048]
[1734302216106,20.0,218.82,218.77,6.6048]
[1734302217613,20.0,218.82,218.72,6.4288]
[1734302217614,23.902374,218.81,218.72,6.4288]
[1734302218199,20.0,218.78,218.72,6.4288]
[1734302224523,20.0,218.78,218.67,6.458]
[1734302225544,0.12549,218.77,218.67,6.458]
[1734302225704,20.0,218.74,218.67,6.458]
[1734302226309,20.0,218.73,218.67,6.458]
[1734302227115,20.0,218.73,218.62,6.1125]
[1734302227514,20.0,218.69,218.62,6.1125]
[1734302235342,20.0,218.69,218.56,7.86488008]
[1734302235343,20.0,218.69,218.57,6.2738]
[1734302236211,0.12549,218.68,218.57,6.2738]
[1734302236414,20.0,218.69,218.57,6.2738]
[1734302237347,20.0,218.7,218.57,6.2738]
[1734302237643,20.0,218.68,218.58,0.12549]
[1734302238840,23.902374,218.71,218.58,0.12549]
[1734302239741,1.5669,218.72,218.58,0.12549]
[1734302240121,23.776884,218.71,218.58,0.12549]
[1734302240446,6.8579,218.73,218.59,0.12549]
[1734302240629,6.8566,218.77,218.6,7.99037008]
[1734302240832,0.12549,218.76,218.61,7.9691]
[1734302241238,0.12549,218.76,218.62,0.12549]
[1734302242128,30.0,218.67,218.62,0.12549]
[1734302242523,30.0,218.67,218.62,7.99037008]
[1734302242722,23.902374,218.76,218.62,7.99037008]
[1734302242945,20.0,218.74,218.62,7.99037008]
[1734302243145,20.0,218.74,218.62,8.67626666]
[1734302243532,20.0,218.74,218.62,0.81138658]
[1734302243728,20.0,218.74,218.62,8.67626666]
[1734302248047,20.0,218.74,218.62,7.99037008]
[1734302251868,20.0,218.74,218.62,8.67627061]
[1734302253269,20.0,218.74,218.63,23.902374]
[1734302253473,20.0,218.76,218.64,0.12549]
[1734302258053,8.550808,218.79,218.66,31.89274408]
[1734302258246,1.5111,218.83,218.69,0.12549]
[1734302258452,10.824002,218.83,218.69,0.12549]
[1734302258865,9.312902,218.83,218.69,0.12549]
[1734302259578,20.0,218.8,218.69,0.12549]
[1734302259773,20.0,218.8,218.69,23.902374]
[1734302259961,20.0,218.82,218.71,0.12549]
[1734302260274,20.0,218.81,218.71,0.12549]
[1734302260853,20.0,218.82,218.71,0.12549]
[1734302283891,23.902374,218.81,218.7,1.6369]
[1734302286108,26.8549,218.82,218.7,1.6369]
[1734302288511,20.0,218.81,218.7,1.6369]
[1734302299310,20.0,218.79,218.7,1.6369]
[1734302309425,27.19435279,218.79,218.7,1.6369]
[1734302309928,20.0,218.79,218.7,1.6369]
[1734302315311,20.0,218.79,218.71,6.5937]
[1734302316203,7.19435279,218.81,218.71,6.5937]
[1734302316412,7.19435279,218.81,218.73,1.5496]
[1734302316615,14.38870559,218.83,218.77,0.12549]
[1734302316616,7.19435279,218.83,218.77,0.12549]
[1734302316811,7.19435279,218.86,218.78,6.5937]
[1734302317041,7.19435279,218.88,218.79,1.5496]
[1734302317222,7.19435279,218.87,218.79,1.5496]
[1734302317427,7.19435279,218.89,218.79,1.5496]
[1734302317845,7.19435279,218.9,218.81,6.4705]
[1734302318058,7.19435279,218.91,218.81,6.4705]
[1734302319448,7.19435279,218.92,218.81,6.4705]
[1734302320116,7.19435279,218.92,218.82,0.12549]
[1734302320441,7.19435279,218.93,218.83,1.6284]
[1734302320744,7.19435279,218.95,218.84,0.12549]
[1734302321318,20.0,218.93,218.84,0.12549]
[1734302321647,20.0,218.93,218.85,6.4691]
[1734302322434,12.13874595,218.96,218.85,6.4691]
[1734302322435,20.0,218.94,218.85,6.4691]
[1734302324240,20.0,218.95,218.85,6.4691]
[1734302341880,20.0,218.95,218.86,0.12549]
[1734302342054,20.0,218.95,218.87,1.661]
[1734302342543,20.0,218.95,218.88,6.497]
[1734302343248,0.12549,218.99,218.88,6.497]
[1734302343452,20.0,218.97,218.88,6.497]
[1734302344575,23.776884,219.0,218.88,6.497]
[1734302346179,4.66964538,219.02,218.91,6.497]
[1734302346381,0.12549,219.04,218.91,6.497]
[1734302347581,20.0,219.01,218.91,6.497]
[1734302349297,6.848,219.05,218.92,8.28349]
[1734302349457,6.848,219.05,218.93,0.12549]
[1734302350381,6.848,219.05,218.94,7.8278]
[1734302351862,20.0,219.03,218.94,7.8278]
[1734302354169,20.0,219.06,218.95,0.12549]
[1734302354890,20.0,219.06,218.96,6.4861]
[1734302356076,20.0,219.06,218.97,1.5619]
[1734302358395,20.0,219.06,218.98,6.4861]
[1734302358560,4.66964538,219.07,218.98,6.4861]
[1734302358764,0.5478344,219.13,218.99,0.12549]
[1734302358765,7.3933344,219.13,218.99,0.12549]
[1734302359767,0.12549,219.12,218.99,0.12549]
[1734302359970,20.0,219.1,219.0,6.4861]
[1734302360193,20.0,219.1,219.01,0.12549]
[1734302362392,20.0,219.1,219.02,1.5941]
[1734302364463,20.0,219.1,219.03,6.25279]
[1734302364682,7.3933344,219.13,219.04,7.7214]
[1734302364683,0.5478344,219.13,219.04,7.7214]
[1734302364897,0.5478344,219.13,219.05,0.12549]
[1734302365101,0.5478344,219.13,219.06,6.1273]
[1734302371886,0.5478344,219.13,219.07,0.12549]
[1734302376731,0.5478344,219.13,219.07,24.027864]
[1734302377987,0.5478344,219.13,219.09,6.20809]
[1734302387748,0.5478344,219.13,219.12,6.221]
[1734302400211,0.5478344,219.13,219.09,0.12549]
[1734302400439,0.5478344,219.13,219.06,6.103]
[1734302400610,25.3925344,219.15,219.06,5.603]
[1734302400934,0.12549,219.14,218.99,1.6047]
[1734302401130,23.902374,219.14,218.99,1.6047]
[1734302401323,0.12549,219.13,218.99,1.6047]
[1734302401641,23.902374,219.12,218.99,1.6047]
[1734302401815,0.12549,219.11,218.99,1.6047]
[1734302402131,23.902374,219.09,218.91,9.48738008]
[1734302402332,23.902374,219.09,218.92,0.12549]
[1734302402333,6.8468,219.08,218.92,0.12549]
[1734302402519,20.0,219.05,218.92,0.12549]
[1734302402924,20.0,219.05,218.91,1.6225]
[1734302404706,20.0,219.05,218.91,2.30755485]
[1734302405135,20.0,219.05,218.92,0.12549]
[1734302406911,20.0,219.05,218.92,24.027864]
[1734302407106,20.0,219.05,218.94,0.12549]
[1734302407312,20.0,219.01,218.94,0.12549]
[1734302407532,20.0,219.01,218.91,1.6225]
[1734302407720,20.0,219.01,218.92,0.12549]
[1734302408414,30.0,219.0,218.91,1.6225]
[1734302408831,30.0,219.0,218.91,2.30755688]
[1734302409136,30.0,219.0,218.92,23.902374]
[1734302409748,30.0,219.0,218.93,0.12549]
[1734302410039,20.0,219.02,218.93,0.12549]
[1734302414443,20.0,219.02,218.92,0.12549]
[1734302414824,20.0,219.02,218.91,1.6225]
[1734302417779,20.0,219.02,218.92,0.12549]
[1734302426651,20.0,219.02,218.91,1.6225]
[1734302435541,20.0,219.03,218.91,1.6225]
[1734302439342,26.8483,219.04,218.91,1.6225]
[1734302439745,0.12549,219.03,218.92,0.12549]
[1734302440645,20.0,218.99,218.91,1.6225]
[1734302441345,20.0,218.99,218.9,6.3717]
[1734302441938,0.12549,218.98,218.86,1.6249]
[1734302442876,20.0,218.95,218.86,1.6249]
[1734302447940,0.12549,218.96,218.86,1.6249]
[1734302448141,20.0,218.92,218.86,1.6249]
[1734302449043,20.0,218.92,218.84,6.2205]
[1734302456480,31.4271,218.92,218.84,6.2205]
[1734302460670,33.26300398,218.92,218.84,6.2205]
[1734302461986,33.26300398,218.92,218.81,1.6338]
[1734302461987,20.0,218.88,218.81,1.6338]
[1734302462293,20.0,218.87,218.81,1.6338]
[1734302471572,28.550481,218.87,218.81,1.6338]
[1734302472696,20.0,218.83,218.72,1.6441]
[1734302474303,20.0,218.83,218.73,0.12549]
[1734302474488,20.0,218.81,218.73,0.12549]
[1734302475905,20.0,218.81,218.72,1.6441]
[1734302478304,20.0,218.83,218.72,1.6441]
[1734302478603,43.776884,218.82,218.72,1.6441]
[1734302479184,0.12549,218.81,218.72,1.6441]
[1734302480687,6.8555,218.8,218.72,1.6441]
[1734302481099,20.0,218.77,218.72,1.6441]
[1734302493150,20.0,218.74,218.72,1.6441]
[1734302495952,20.0,218.78,218.72,1.6441]
[1734302496234,1.83881699,218.84,218.76,0.12549]
[1734302496409,6.8542,218.85,218.76,0.12549]
[1734302497514,20.0,218.82,218.76,0.12549]
[1734302507257,20.0,218.82,218.75,6.5121]
[1734302525302,7.19435279,218.87,218.8,8.14679]
[1734302525472,56.0005817,218.92,218.79,23.902374]
[1734302525473,7.19435279,218.93,218.82,6.4207]
[1734302525673,7.19435279,218.95,218.83,23.902374]
[1734302525893,7.19435279,218.95,218.84,1.6112]
[1734302526392,14.04465279,218.97,218.84,1.6112]
[1734302526595,6.8503,218.97,218.84,1.6112]
[1734302526779,6.8503,218.97,218.85,1.82695656]
[1734302526968,7.19435279,218.99,218.87,6.2518]
[1734302527167,8.99150793,219.0,218.87,6.2518]
[1734302527369,14.04345279,219.01,218.87,6.2518]
[1734302527602,15.83360759,219.01,218.87,6.2518]
[1734302528298,15.83360759,219.01,218.88,1.6112]
[1734302528597,20.0,218.98,218.88,1.6112]
[1734302528776,6.8491,219.01,218.88,1.6112]
[1734302529879,20.0,218.98,218.88,1.6112]
[1734302531818,20.0,218.98,218.89,6.4573]
[1734302534418,19.5,218.98,218.89,6.4573]
[1734302539132,6.8491,219.01,218.9,23.776884]
[1734302539438,1.79253708,219.04,218.9,1.6067]
[1734302539639,6.848,219.05,218.93,1.6067]
[1734302540145,6.848,219.05,218.94,6.0755]
[1734302540358,20.85427344,219.14,218.94,6.0755]
[1734302540359,15.85427344,219.14,218.94,6.0755]
[1734302540629,2.7850435,219.08,218.94,6.0755]
[1734302541318,24.027864,219.07,218.94,6.0755]
[1734302541707,20.0,219.04,218.94,6.0755]
[1734302542962,20.0,219.06,218.95,23.776884]
[1734302543111,20.0,219.06,218.96,7.6822]
[1734302552538,20.0,219.06,218.97,6.2221]
[1734302557597,20.0,219.06,218.98,1.6435]
[1734302565968,26.8475,219.06,218.98,1.6435]
[1734302566492,20.0,219.02,218.98,1.6435]
[1734302575647,20.0,219.0,218.98,1.6435]
[1734302589478,20.0,219.0,218.97,6.2221]
[1734302607450,20.0,219.01,218.97,6.2221]
[1734302607642,20.0,219.02,218.97,6.2221]
[1734302609638,21.23600559,219.07,218.97,6.2221]
[1734302609639,14.04165279,219.07,218.97,6.2221]
[1734302609837,7.19435279,219.09,218.97,6.2221]
[1734302610038,7.19435279,219.08,218.97,6.2221]
[1734302610478,7.19435279,219.09,218.97,6.2221]
[1734302611445,20.0,219.06,218.97,6.2221]
[1734302611847,20.0,219.05,218.97,6.2221]
[1734302612346,20.0,219.06,218.97,6.2221]
[1734302612559,20.0,219.06,218.98,1.6256]
[1734302613850,20.0,219.07,218.98,1.6256]
[1734302614049,20.0,219.06,218.98,1.6256]
[1734302614551,7.19435279,219.09,219.0,7.86488008]
[1734302614746,7.86488,219.1,219.01,8.1794]
[1734302614747,20.0,219.07,219.01,8.1794]
[1734302615164,7.19435279,219.1,219.01,8.1794]
[1734302615371,7.19435279,219.11,219.01,8.1794]
[1734302616651,7.19435279,219.14,219.01,8.1794]
[1734302617391,20.0,219.12,219.02,9.49048008]
[1734302618251,20.0,219.13,219.02,9.49048008]
[1734302619082,20.0,219.13,219.03,30.456174]
[1734302621247,20.0,219.15,219.03,30.456174]
[1734302623880,20.0,219.15,219.03,6.5538]
[1734302624059,9.49048,219.18,219.03,6.5538]
[1734302624060,20.0,219.14,219.03,6.5538]
[1734302627284,23.902374,219.13,219.03,6.5538]
[1734302627493,20.0,219.1,219.03,6.5538]
[1734302628066,20.0,219.06,219.03,6.5538]
[1734302631294,20.0,219.02,218.97,6.4806]
[1734302656036,7.19435279,219.14,219.0,6.45639]
[1734302656203,6.8442,219.17,219.0,6.45639]
[1734302656204,14.03855279,219.17,219.03,7.86488008]
[1734302656525,0.12549,219.15,219.03,7.86488008]
[1734302657231,20.0,219.14,219.03,7.86488008]
[1734302657602,20.0,219.13,219.03,7.86488008]
[1734302658730,20.0,219.13,219.01,1.82560325]
[1734302659026,20.0,219.13,219.0,6.45639]
[1734302659027,20.0,219.13,219.02,7.86488008]
[1734302667823,20.0,219.11,219.0,6.3309]
[1734302668320,20.0,219.11,219.0,8.15657024]
[1734302669332,20.0,219.11,219.0,8.15655754]
[1734302671339,20.0,219.11,219.0,6.3309]
[1734302673440,0.12549,219.1,219.0,6.3309]
[1734302674237,0.12549,219.11,219.0,6.3309]
[1734302674733,20.0,219.08,219.0,6.3309]
[1734302702076,24.027864,219.07,218.94,0.68481963]
[1734302702376,24.027864,219.07,218.93,14.05598008]
[1734302702377,20.0,219.03,218.93,14.05598008]
[1734302708258,20.0,219.03,218.95,7.86488008]
[1734302711556,20.0,219.03,218.93,6.1911]
[1734302711859,20.0,219.03,218.94,7.86488008]
[1734302722076,26.8484,219.03,218.93,6.1911]
[1734302728290,26.8484,219.03,218.93,14.05598008]
[1734302729497,20.0,219.02,218.93,14.05598008]
[1734302729698,20.0,219.0,218.93,14.05598008]
[1734302730076,20.0,219.0,218.95,7.86488008]
[1734302730491,20.0,219.0,218.93,14.05598008]
[1734302731381,20.0,219.0,218.93,6.1911]
[1734302736583,7.19435279,219.05,218.94,23.902374]
[1734302736784,1.8009389,219.07,218.96,8.2423]
[1734302737099,6.847,219.08,218.96,8.2423]
[1734302737499,14.04135279,219.08,218.96,8.2423]
[1734302737683,6.847,219.08,218.96,8.2423]
[1734302737883,20.0,219.05,218.96,8.2423]
[1734302749098,20.0,219.05,218.97,7.86488008]
[1734302750427,20.0,219.05,218.98,8.2807]
[1734302750839,20.0,219.08,218.98,8.2807]
[1734302752243,20.0,219.08,218.99,31.76725408]
[1734302755890,20.0,219.1,219.02,6.4893]
[1734302756416,20.0,219.12,219.02,6.4893]
[1734302757719,20.0,219.12,219.03,1.5397]
[1734302758448,7.19435279,219.17,219.06,23.902374]
[1734302758620,14.03765279,219.2,219.06,23.902374]
[1734302758815,6.8433,219.2,219.07,6.5346]
[1734302760923,20.0,219.17,219.07,6.5346]
[1734302766126,20.0,219.17,219.08,1.5752]
[1734302766326,20.0,219.17,219.09,6.355]
[1734302773245,20.0,219.17,219.09,14.21988008]
[1734302775137,20.0,219.17,219.1,1.68259]
[1734302775335,20.0,219.2,219.12,23.902374]
[1734302775827,20.0,219.22,219.12,23.902374]
[1734302777144,26.8424,219.22,219.1,8.0462]
[1734302779231,28.63407497,219.22,219.1,8.0462]
[1734302781954,28.63407497,219.22,219.1,15.91108008]
[1734302783765,28.63407497,219.22,219.11,7.86488008]
[1734302784763,28.63407497,219.22,219.1,15.91108008]
[1734302790569,28.63407497,219.22,219.12,6.3295]
[1734302793782,28.63407497,219.22,219.13,23.902374]
[1734302793783,26.8424,219.22,219.13,23.902374]
[1734302793949,26.8424,219.22,219.14,1.6488]
[1734302802552,26.8424,219.22,219.12,6.3295]
[1734302802553,0.25098,219.2,219.12,6.3295]
[1734302802762,0.12549,219.16,219.03,7.86488008]
[1734302802978,20.0,219.13,219.05,6.0113]
[1734302803986,20.0,219.11,219.05,6.0113]
[1734302810071,26.8459,219.11,219.05,6.0113]
[1734302810964,20.12549,219.1,219.05,6.0113]
[1734302811165,20.0,219.08,219.05,6.0113]
[1734302812190,20.0,219.08,219.0,6.1285]
[1734302815192,6.8469,219.08,219.0,6.1285]
[1734302815390,20.0,219.05,219.0,6.1285]
[1734302817278,20.0,219.05,218.88,31.45952032]
[1734302817279,20.0,219.01,218.92,7.86488008]
[1734302817591,20.0,219.01,218.93,6.5049]
[1734302823996,54.027864,219.04,218.93,6.5049]
[1734302823997,20.0,218.99,218.93,6.5049]
[1734302832887,24.027864,218.98,218.88,6.1545]
[1734302833110,20.0,218.95,218.88,6.1545]
[1734302839915,30.0,218.93,218.88,6.1545]
[1734302841407,20.0,218.95,218.88,6.1545]
[1734302847396,30.0,218.92,218.88,6.1545]
[1734302848890,20.0,218.95,218.88,6.1545]
[1734302886828,20.0,218.94,218.88,6.1545]
[1734302889331,20.0,218.93,218.88,6.1545]
[1734302889957,20.0,218.94,218.88,6.1545]
[1734302893636,20.0,218.93,218.88,6.1545]
[1734302919371,20.0,218.92,218.88,6.1545]
[1734302919683,20.0,218.93,218.88,6.1545]
[1734302933372,20.0,218.92,218.88,6.1545]
[1734302933778,20.0,218.91,218.88,6.1545]
[1734302934194,20.0,218.92,218.88,6.1545]
[1734302935886,20.0,218.93,218.88,6.1545]
[1734302937372,20.0,218.92,218.88,6.1545]
[1734302938290,20.0,218.93,218.88,6.1545]
[1734302938481,0.12549,218.92,218.88,6.1545]
[1734302938697,20.0,218.89,218.88,6.1545]
[1734302943206,20.0,218.89,218.87,1.5599]
[1734302943395,20.0,218.89,218.83,6.381]
[1734302954595,20.0,218.89,218.75,8.0586]
[1734302954794,20.0,218.85,218.75,8.0586]
[1734302955402,20.0,218.86,218.75,8.0586]
[1734302956103,0.12549,218.88,218.75,8.0586]
[1734302956300,20.0,218.83,218.75,8.0586]
[1734302964931,20.0,218.83,218.75,6.4374]
[1734302969845,20.0,218.79,218.75,6.4374]
[1734302971310,20.0,218.79,218.7,1.5358]
[1734302979238,20.0,218.79,218.68,6.5851]
[1734302979542,20.0,218.75,218.68,6.5851]
[1734302980930,20.0,218.73,218.68,6.5851]
[1734302988948,20.0,218.73,218.64,9.51078008]
[1734302988949,20.0,218.73,218.64,7.789]
[1734302994555,26.8577,218.73,218.64,7.789]
[1734302997030,20.0,218.69,218.64,7.789]
[1734302998054,20.0,218.67,218.64,7.789]
[1734303002963,20.0,218.67,218.58,8.41271448]
[1734303002964,20.0,218.67,218.58,0.5478344]
[1734303003146,20.0,218.63,218.58,0.5478344]
[1734303004251,20.0,218.59,218.58,0.5478344]
[1734303010762,44.027864,218.59,218.58,0.5478344]
[1734303013655,20.25098,218.59,218.58,0.5478344]
[1734303013965,20.0,218.59,218.58,0.5478344]
[1734303017979,20.25098,218.59,218.58,0.5478344]
[1734303018189,8.71085815,218.62,218.41,14.45988008]
[1734303018190,0.25098,218.54,218.41,14.45988008]
[1734303019689,0.25098,218.54,218.42,23.776884]
[1734303022560,0.25098,218.49,218.36,0.5478344]
[1734303024263,20.0,218.46,218.36,0.5478344]
[1734303024971,20.0,218.46,218.37,7.8096]
[1734303026119,20.0,218.5,218.38,23.776884]
[1734303028081,5.27955809,218.56,218.39,7.86488008]
[1734303028082,0.12549,218.55,218.39,7.86488008]
[1734303028675,0.25098,218.55,218.4,23.776884]
[1734303029483,20.0,218.53,218.4,23.776884]
[1734303029969,20.0,218.53,218.42,23.776884]
[1734303030300,0.25098,218.55,218.44,23.776884]
[1734303030874,0.25098,218.56,218.44,23.776884]
[1734303031272,20.0,218.54,218.44,23.776884]
[1734303032867,21.82924625,218.58,218.44,23.776884]
[1734303033192,20.0,218.58,218.44,23.776884]
[1734303034362,20.0,218.58,218.46,23.776884]
[1734303041169,0.25098,218.57,218.46,23.776884]
[1734303045893,0.25098,218.57,218.45,6.4265]
[1734303048079,20.25098,218.57,218.45,6.4265]
[1734303048282,20.0,218.55,218.45,6.4265]
[1734303050899,0.25098,218.54,218.45,6.4265]
[1734303053202,20.0,218.5,218.45,6.4265]
[1734303053605,20.0,218.49,218.45,6.4265]
[1734303055678,20.0,218.49,218.45,5.963093]
[1734303056202,20.0,218.5,218.45,5.963093]
[1734303062519,0.25098,218.49,218.45,5.963093]
[1734303062836,0.25098,218.49,218.43,1.5573]
[1734303066805,0.25098,218.49,218.41,6.0941]
[1734303070819,29.26807518,218.54,218.41,6.0941]
[1734303070820,11.74336959,218.54,218.42,1.5339]
[1734303071410,0.12549,218.53,218.42,1.5339]
[1734303072014,0.25098,218.53,218.42,1.5339]
[1734303072322,0.25098,218.53,218.43,6.5996]
[1734303072521,7.19435279,218.56,218.42,23.776884]
[1734303072733,14.38870559,218.6,218.48,6.5996]
[1734303072910,16.80818931,218.62,218.49,23.776884]
[1734303073719,0.12549,218.61,218.49,23.776884]
[1734303073942,20.0,218.59,218.49,23.776884]
[1734303074311,8.70369274,218.62,218.51,23.776884]
[1734303074739,0.12549,218.61,218.51,23.776884]
[1734303075053,8.70369274,218.62,218.51,23.776884]
[1734303075054,1.84229274,218.62,218.51,23.776884]
[1734303075343,9.88936143,218.64,218.51,23.776884]
[1734303075745,0.12549,218.63,218.51,23.776884]
[1734303076250,0.12549,218.61,218.51,23.776884]
[1734303076707,0.12549,218.61,218.52,6.017]
[1734303078505,20.0,218.62,218.52,6.017]
[1734303078748,20.0,218.63,218.54,1.5554]
[1734303079116,11.78640085,218.68,218.54,1.5554]
[1734303079117,0.12549,218.65,218.54,1.5554]
[1734303079327,0.12549,218.65,218.55,6.5056]
[1734303080059,0.25098,218.65,218.55,6.5056]
[1734303080652,20.0,218.63,218.55,6.5056]
[1734303082913,4.59204806,218.68,218.56,23.776884]
[1734303083114,20.0,218.67,218.56,23.776884]
[1734303085831,20.0,218.67,218.57,7.8401]
[1734303087546,20.0,218.67,218.58,23.776884]
[1734303089571,20.0,218.67,218.59,7.8116]
[1734303092379,20.0,218.68,218.59,7.8116]
[1734303093253,0.25098,218.7,218.59,7.8116]
[1734303108695,0.25098,218.7,218.6,6.1457]
[1734303117703,4.59204806,218.74,218.65,23.776884]
[1734303117912,6.8564,218.78,218.64,1.6116]
[1734303117913,6.8564,218.78,218.66,6.1457]
[1734303118218,0.12549,218.77,218.66,6.1457]
[1734303118620,6.8564,218.78,218.66,6.1457]
[1734303118997,20.0,218.75,218.66,6.1457]
[1734303121504,4.59204806,218.79,218.69,6.4737]
[1734303122823,20.0,218.78,218.69,6.4737]
[1734303123606,20.0,218.78,218.64,11.4342]
[1734303123607,7.19435279,218.89,218.74,29.960384]
[1734303123824,7.19435279,218.92,218.76,23.776884]
[1734303124117,2.74081184,218.91,218.8,1.5817]
[1734303124513,0.12549,218.9,218.8,1.5817]
[1734303125709,0.25098,218.9,218.8,1.5817]
[1734303125909,20.0,218.91,218.81,23.776884]
[1734303126311,21.79407843,218.94,218.83,23.776884]
[1734303126533,14.21283572,218.98,218.83,23.776884]
[1734303126716,0.12549,218.97,218.83,23.776884]
[1734303127709,20.0,218.95,218.83,23.776884]
[1734303129622,20.0,218.95,218.85,23.776884]
[1734303130232,0.25098,218.98,218.85,23.776884]
[1734303132037,20.0,219.0,218.87,23.776884]
[1734303132246,20.0,219.01,218.87,23.776884]
[1734303133143,20.0,219.0,218.87,23.776884]
[1734303133344,20.0,219.0,218.88,8.21478]
[1734303133545,20.0,219.0,218.89,23.776884]
[1734303135259,20.0,219.01,218.89,23.776884]
[1734303135664,20.0,219.0,218.89,23.776884]
[1734303136032,20.0,219.01,218.89,23.776884]
[1734303146696,0.12549,218.93,218.81,6.6502]
[1734303147383,0.25098,218.94,218.81,6.6502]
[1734303148482,0.25098,218.94,218.82,23.776884]
[1734303150695,20.0,218.9,218.82,23.776884]
[1734303156206,0.25098,218.96,218.84,23.776884]
[1734303156697,18.275129,218.94,218.84,23.776884]
[1734303157084,0.12549,218.99,218.85,8.05059]
[1734303157292,0.12549,218.99,218.87,6.3918]
[1734303157598,18.397507,218.99,218.88,23.776884]
[1734303158190,24.027864,218.81,218.56,7.86488008]
[1734303158393,24.027864,218.79,218.6,3.01]
[1734303158586,2.99024727,218.78,218.55,7.86488008]
[1734303158785,24.027864,218.77,218.55,7.86488008]
[1734303158992,20.0,218.7,218.55,7.86488008]
[1734303159306,20.0,218.7,218.55,8.55089193]
[1734303159493,23.776884,218.75,218.6,0.12549]
[1734303159687,20.0,218.72,218.6,0.81141796]
[1734303159895,20.0,218.72,218.61,7.86488008]
[1734303160096,20.0,218.72,218.62,20.0]
[1734303160499,23.776884,218.75,218.62,20.0]
[1734303160680,23.776884,218.76,218.63,20.0]
[1734303160883,20.0,218.73,218.63,20.0]
[1734303161117,20.0,218.73,218.65,1.5647]
[1734303163218,23.776884,218.76,218.65,1.5647]
[1734303163805,23.776884,218.76,218.67,20.0]
[1734303166205,5.856341,218.82,218.67,20.0]
[1734303166382,5.856341,218.82,218.69,6.5263]
[1734303166587,42.06111,218.84,218.69,6.5263]
[1734303166996,23.776884,218.84,218.69,6.5263]
[1734303167605,23.776884,218.84,218.7,11.4311]
[1734303167606,23.776884,218.83,218.7,11.4311]
[1734303167801,23.776884,218.83,218.73,20.0]
[1734303171405,23.776884,218.83,218.74,1.5647]
[1734303176436,23.776884,218.84,218.74,1.5647]
[1734303176437,23.776884,218.84,218.75,0.25098]